[Event "NJSK 2026 Jeugd B"]
[Site "Helmond, Netherlands"]
[Date "2026.04.28"]
[Round "4.1"]
[White "Groenewoud, Joel"]
[Black "Chua, Ethan"]
[Result "0-1"]
[TimeControl "90min/40moves + 30min + 30sec/move"]
[WhiteTitle "-"]
[BlackTitle "-"]
[WhiteFideId "1087746"]
[BlackFideId "1089250"]
[WhiteElo "2114"]
[BlackElo "2168"]

1. e4 {[%clk 01:30:50]} {[%emt 00:00:10]} c5 {[%clk 01:30:44]} {[%emt
00:00:16]} 2. Nf3 {[%clk 01:30:45]} {[%emt 00:00:34]} Nc6 {[%clk 01:31:10]}
{[%emt 00:00:05]} 3. d4 {[%clk 01:31:10]} {[%emt 00:00:05]} cxd4 {[%clk
01:31:37]} {[%emt 00:00:03]} 4. Nxd4 {[%clk 01:31:34]} {[%emt 00:00:06]} e5
{[%clk 01:32:02]} {[%emt 00:00:06]} 5. Nb5 {[%clk 01:31:59]} {[%emt 00:00:04]}
d6 {[%clk 01:32:29]} {[%emt 00:00:03]} 6. c4 {[%clk 01:32:20]} {[%emt
00:00:09]} Be6 {[%clk 01:32:15]} {[%emt 00:00:44]} 7. Bd3 {[%clk 01:32:14]}
{[%emt 00:00:36]} Be7 {[%clk 01:28:36]} {[%emt 00:04:10]} 8. O-O {[%clk
01:29:59]} {[%emt 00:02:44]} Nf6 {[%clk 01:28:54]} {[%emt 00:00:12]} 9. N5c3
{[%clk 01:22:57]} {[%emt 00:07:32]} O-O {[%clk 01:27:17]} {[%emt 00:02:06]} 10.
Nd5 {[%clk 01:23:11]} {[%emt 00:00:17]} Rc8 {[%clk 01:25:27]} {[%emt 00:02:19]}
11. Nbc3 {[%clk 01:22:07]} {[%emt 00:01:35]} Nd7 {[%clk 01:22:07]} {[%emt
00:03:50]} 12. Nxe7+ {[%clk 01:14:44]} {[%emt 00:07:51]} Nxe7 {[%clk 01:14:03]}
{[%emt 00:08:36]} 13. Nd5 {[%clk 01:02:43]} {[%emt 00:12:31]} Nc5 {[%clk
01:09:35]} {[%emt 00:04:58]} 14. Bc2 {[%clk 00:54:22]} {[%emt 00:08:51]} f5
{[%clk 01:04:34]} {[%emt 00:05:31]} 15. Bg5 {[%clk 00:43:47]} {[%emt 00:11:05]}
Bxd5 {[%clk 01:04:54]} {[%emt 00:00:10]} 16. Bxe7 {[%clk 00:39:17]} {[%emt
00:05:00]} Qxe7 {[%clk 01:05:10]} {[%emt 00:00:14]} 17. Qxd5+ {[%clk 00:39:42]}
{[%emt 00:00:05]} Qe6 {[%clk 00:51:49]} {[%emt 00:13:52]} 18. exf5 {[%clk
00:29:16]} {[%emt 00:10:55]} Qxd5 {[%clk 00:52:14]} {[%emt 00:00:05]} 19. cxd5
{[%clk 00:29:39]} {[%emt 00:00:07]} a5 {[%clk 00:45:36]} {[%emt 00:07:07]} 20.
f3 {[%clk 00:24:39]} {[%emt 00:05:32]} Kf7 {[%clk 00:38:00]} {[%emt 00:08:07]}
21. Kf2 {[%clk 00:24:16]} {[%emt 00:00:53]} Rc7 {[%clk 00:37:55]} {[%emt
00:00:35]} 22. g4 {[%clk 00:23:21]} {[%emt 00:01:25]} Rfc8 {[%clk 00:38:07]}
{[%emt 00:00:18]} 23. Ke3 {[%emt 00:02:10]} Nd7 {[%clk 00:37:35]} 24. Be4
{[%clk 00:20:36]} {[%emt 00:02:37]} Nf6 {[%clk 00:37:41]} {[%emt 00:00:25]} 25.
Rad1 {[%clk 00:18:03]} {[%emt 00:03:02]} Rc5 {[%clk 00:35:55]} {[%emt
00:02:16]} 26. g5 {[%clk 00:16:50]} {[%emt 00:01:43]} Nh5 {[%clk 00:35:44]}
{[%emt 00:00:40]} 27. h4 {[%clk 00:14:55]} {[%emt 00:02:26]} Nf4 {[%clk
00:32:06]} {[%emt 00:04:06]} 28. Rh1 {[%clk 00:14:39]} {[%emt 00:00:47]} g6
{[%clk 00:28:24]} {[%emt 00:04:13]} 29. Rhg1 {[%clk 00:11:26]} {[%emt
00:03:43]} R8c7 {[%clk 00:23:14]} {[%emt 00:05:39]} 30. a3 {[%clk 00:10:51]}
{[%emt 00:01:06]} Kf8 {[%clk 00:22:21]} {[%emt 00:01:23]} 31. Rh1 {[%clk
00:07:30]} {[%emt 00:03:51]} Kf7 {[%clk 00:11:51]} {[%emt 00:11:01]} 32. Rhg1
{[%clk 00:03:44]} {[%emt 00:04:15]} Kg7 {[%clk 00:11:46]} {[%emt 00:00:34]} 33.
Rd2 {[%clk 00:01:14]} {[%emt 00:03:02]} gxf5 {[%clk 00:09:08]} {[%emt
00:03:08]} 34. Bxf5 {[%clk 00:01:32]} {[%emt 00:00:11]} Nxd5+ {[%clk 00:09:34]}
{[%emt 00:00:04]} 35. Ke4 {[%clk 00:00:36]} {[%emt 00:01:27]} Ne7 {[%clk
00:09:46]} {[%emt 00:00:17]} 36. Be6 {[%clk 00:00:40]} {[%emt 00:00:26]} Rc2
{[%clk 00:08:02]} {[%emt 00:02:13]} 37. Rgg2 {[%clk 00:00:47]} {[%emt
00:00:25]} Rxd2 {[%clk 00:07:37]} {[%emt 00:00:55]} 38. Rxd2 {[%clk 00:01:13]}
{[%emt 00:00:03]} Rc1 {[%clk 00:07:54]} {[%emt 00:00:13]} 39. Rxd6 {[%clk
00:01:24]} {[%emt 00:00:19]} Re1+ {[%clk 00:08:18]} {[%emt 00:00:06]} 0-1

[Event "NJSK 2026 Jeugd B"]
[Site "Helmond, Netherlands"]
[Date "2026.04.28"]
[Round "4.2"]
[White "Baarspul, Bram"]
[Black "Aravindhan, Achyuth"]
[Result "1/2-1/2"]
[TimeControl "90min/40moves + 30min + 30sec/move"]
[WhiteTitle "-"]
[BlackTitle "-"]
[WhiteFideId "40106187"]
[BlackFideId "1084216"]
[WhiteElo "2177"]
[BlackElo "2277"]

1. e4 {[%clk 01:30:51]} {[%emt 00:00:09]} c5 {[%clk 01:30:57]} {[%emt
00:00:03]} 2. Nf3 {[%clk 01:31:17]} {[%emt 00:00:04]} Nc6 {[%clk 01:31:23]}
{[%emt 00:00:04]} 3. Bb5 {[%clk 01:31:35]} {[%emt 00:00:11]} g6 {[%clk
01:31:49]} {[%emt 00:00:05]} 4. O-O {[%clk 01:32:00]} {[%emt 00:00:05]} Bg7
{[%clk 01:32:17]} {[%emt 00:00:02]} 5. c3 {[%clk 01:32:02]} {[%emt 00:00:28]}
a6 {[%clk 01:32:39]} {[%emt 00:00:08]} 6. Bxc6 {[%clk 01:25:50]} {[%emt
00:06:42]} dxc6 {[%clk 01:31:58]} {[%emt 00:01:11]} 7. d3 {[%clk 01:22:51]}
{[%emt 00:03:29]} Nf6 {[%clk 01:31:59]} {[%emt 00:00:29]} 8. Qc2 {[%clk
01:16:52]} {[%emt 00:06:28]} O-O {[%clk 01:28:04]} {[%emt 00:04:25]} 9. Be3
{[%clk 01:15:37]} {[%emt 00:01:45]} b6 {[%clk 01:26:17]} {[%emt 00:02:17]} 10.
h3 {[%clk 01:13:41]} {[%emt 00:02:26]} a5 {[%clk 01:25:58]} {[%emt 00:00:50]}
11. a4 {[%clk 01:11:40]} {[%emt 00:02:30]} Ba6 {[%clk 01:23:50]} {[%emt
00:02:39]} 12. Rd1 {[%clk 01:11:48]} {[%emt 00:00:21]} Nd7 {[%clk 01:23:45]}
{[%emt 00:00:35]} 13. d4 {[%clk 01:06:42]} {[%emt 00:05:36]} Qc7 {[%clk
01:23:49]} {[%emt 00:00:26]} 14. e5 {[%clk 00:57:41]} {[%emt 00:09:31]} cxd4
{[%clk 01:12:26]} {[%emt 00:11:53]} 15. cxd4 {[%clk 00:57:52]} {[%emt
00:00:20]} c5 {[%clk 01:11:50]} {[%emt 00:01:06]} 16. e6 {[%clk 00:45:24]}
{[%emt 00:12:58]} fxe6 {[%clk 01:10:35]} {[%emt 00:01:45]} 17. Qe4 {[%clk
00:45:35]} {[%emt 00:00:20]} Be2 {[%clk 01:06:16]} {[%emt 00:04:48]} 18. Qxe6+
{[%clk 00:43:30]} {[%emt 00:02:34]} Kh8 {[%clk 01:06:03]} {[%emt 00:00:43]} 19.
Bf4 {[%clk 00:43:23]} {[%emt 00:00:37]} Qxf4 {[%clk 01:05:18]} {[%emt
00:01:15]} 20. Qxe2 {[%clk 00:43:47]} {[%emt 00:00:07]} cxd4 {[%clk 01:05:10]}
{[%emt 00:00:38]} 21. Qxe7 {[%clk 00:35:26]} {[%emt 00:08:51]} Ne5 {[%clk
00:56:22]} {[%emt 00:09:18]} 22. Nbd2 {[%clk 00:33:13]} {[%emt 00:02:42]} Rae8
{[%clk 00:51:49]} {[%emt 00:05:03]} 23. Qb7 {[%clk 00:32:59]} {[%emt 00:00:44]}
g5 {[%clk 00:35:40]} {[%emt 00:16:41]} 24. Qxb6 {[%clk 00:25:14]} {[%emt
00:08:16]} h5 {[%clk 00:33:53]} {[%emt 00:02:17]} 25. Re1 {[%clk 00:18:25]}
{[%emt 00:07:18]} g4 {[%clk 00:25:31]} {[%emt 00:08:52]} 26. Nxe5 {[%clk
00:18:17]} {[%emt 00:00:39]} Rxe5 {[%clk 00:24:49]} {[%emt 00:01:12]} 27. Rxe5
{[%clk 00:16:20]} {[%emt 00:02:27]} Bxe5 {[%clk 00:23:36]} {[%emt 00:01:42]} 28.
Qg6 {[%clk 00:14:00]} {[%emt 00:02:50]} Qh2+ {[%clk 00:02:28]} {[%emt
00:21:39]} 29. Kf1 {[%clk 00:14:29]} {[%emt 00:00:01]} d3 {[%clk 00:02:21]}
{[%emt 00:00:37]} 30. Qxh5+ {[%clk 00:10:32]} {[%emt 00:04:26]} Kg8 {[%clk
00:02:33]} {[%emt 00:00:18]} 31. Qxg4+ {[%clk 00:06:14]} {[%emt 00:04:49]} Bg7
{[%clk 00:02:44]} {[%emt 00:00:19]} 32. Qc4+ {[%clk 00:05:50]} {[%emt
00:00:54]} Kh8 {[%clk 00:02:29]} {[%emt 00:00:43]} 33. Qh4+ {[%clk 00:05:53]}
{[%emt 00:00:29]} Kg8 {[%clk 00:02:53]} {[%emt 00:00:06]} 34. Qc4+ {[%clk
00:06:20]} {[%emt 00:00:03]} Kh8 {[%clk 00:01:32]} {[%emt 00:01:51]} 35. Qh4+
{[%clk 00:06:37]} {[%emt 00:00:13]} Kg8 {[%clk 00:01:19]} {[%emt 00:00:42]}
1/2-1/2

[Event "NJSK 2026 Jeugd B"]
[Site "Helmond, Netherlands"]
[Date "2026.04.28"]
[Round "4.3"]
[White "Kurt, Sascha"]
[Black "Grooten, Tommy"]
[Result "0-1"]
[TimeControl "90min/40moves + 30min + 30sec/move"]
[WhiteTitle "-"]
[BlackTitle "-"]
[WhiteFideId "1082647"]
[BlackFideId "1068806"]
[WhiteElo "2280"]
[BlackElo "2347"]

1. e4 {[%clk 01:29:49]} {[%emt 00:01:01]} c5 {[%clk 01:30:20]} {[%emt
00:00:51]} 2. Nf3 {[%clk 01:30:12]} {[%emt 00:00:07]} e6 {[%clk 01:30:45]}
{[%emt 00:00:04]} 3. d4 {[%clk 01:30:35]} {[%emt 00:00:07]} cxd4 {[%clk
01:31:12]} {[%emt 00:00:04]} 4. Nxd4 {[%clk 01:31:02]} {[%emt 00:00:02]} a6
{[%clk 01:31:35]} {[%emt 00:00:07]} 5. Bd3 {[%clk 01:31:27]} {[%emt 00:00:05]}
Bc5 {[%clk 01:32:01]} {[%emt 00:00:04]} 6. Nb3 {[%clk 01:31:52]} {[%emt
00:00:06]} Ba7 {[%clk 01:32:27]} {[%emt 00:00:03]} 7. Bf4 {[%clk 01:31:59]}
{[%emt 00:00:22]} d6 {[%clk 01:32:53]} {[%emt 00:00:06]} 8. Nc3 {[%clk
01:31:42]} {[%emt 00:00:45]} e5 {[%clk 01:32:39]} {[%emt 00:00:45]} 9. Bg3
{[%clk 01:31:37]} {[%emt 00:00:35]} Ne7 {[%clk 01:32:43]} {[%emt 00:00:26]} 10.
Qd2 {[%clk 01:28:25]} {[%emt 00:03:41]} Be6 {[%clk 01:31:52]} {[%emt 00:01:21]}
11. O-O-O {[%clk 01:27:41]} {[%emt 00:01:14]} Nbc6 {[%clk 01:30:48]} {[%emt
00:01:34]} 12. Kb1 {[%clk 01:25:32]} {[%emt 00:02:40]} O-O {[%clk 01:28:09]}
{[%emt 00:03:08]} 13. Nd5 {[%clk 01:22:56]} {[%emt 00:03:06]} b5 {[%clk
01:23:44]} {[%emt 00:04:55]} 14. f4 {[%clk 01:17:38]} {[%emt 00:05:48]} f6
{[%clk 01:23:02]} {[%emt 00:01:12]} 15. f5 {[%clk 01:05:01]} {[%emt 00:13:08]}
Bxd5 {[%clk 01:13:03]} {[%emt 00:10:29]} 16. exd5 {[%clk 01:05:24]} {[%emt
00:00:07]} Nd4 {[%clk 01:13:25]} {[%emt 00:00:07]} 17. Nxd4 {[%clk 01:04:36]}
{[%emt 00:01:19]} Bxd4 {[%clk 01:13:46]} {[%emt 00:00:08]} 18. c3 {[%clk
01:02:56]} {[%emt 00:02:10]} Bc5 {[%clk 01:13:29]} {[%emt 00:00:47]} 19. Bh4
{[%clk 00:58:06]} {[%emt 00:05:20]} Qb6 {[%clk 00:58:03]} {[%emt 00:15:56]} 20.
g4 {[%clk 00:54:33]} {[%emt 00:04:03]} Kh8 {[%clk 00:57:07]} {[%emt 00:01:26]}
21. Be4 {[%clk 00:51:43]} {[%emt 00:03:21]} b4 {[%clk 00:43:17]} {[%emt
00:14:20]} 22. c4 {[%clk 00:51:16]} {[%emt 00:00:57]} Bd4 {[%clk 00:41:42]}
{[%emt 00:02:04]} 23. Be1 {[%clk 00:41:50]} {[%emt 00:09:56]} a5 {[%clk
00:39:02]} {[%emt 00:03:11]} 24. h4 {[%clk 00:40:46]} {[%emt 00:01:34]} Rac8
{[%clk 00:33:11]} {[%emt 00:06:23]} 25. Qe2 {[%clk 00:39:59]} {[%emt 00:01:17]}
Rc7 {[%clk 00:32:49]} {[%emt 00:00:52]} 26. Bd3 {[%clk 00:38:59]} {[%emt
00:01:30]} Rfc8 {[%clk 00:30:58]} {[%emt 00:02:22]} 27. Bd2 {[%clk 00:34:18]}
{[%emt 00:05:10]} b3 {[%clk 00:27:16]} {[%emt 00:04:12]} 28. a3 {[%clk
00:34:08]} {[%emt 00:00:41]} Nxd5 {[%clk 00:27:28]} {[%emt 00:00:18]} 29. g5
{[%emt 00:11:13]} Nb4 {[%clk 00:23:49]} 30. Qh5 {[%clk 00:21:40]} {[%emt
00:06:23]} Nxd3 {[%clk 00:23:43]} {[%emt 00:00:36]} 31. g6 {[%clk 00:21:55]}
{[%emt 00:00:16]} h6 {[%clk 00:24:02]} {[%emt 00:00:10]} 32. Bxh6 {[%clk
00:22:21]} {[%emt 00:00:04]} gxh6 {[%clk 00:24:26]} {[%emt 00:00:07]} 33. Qxh6+
{[%clk 00:22:43]} {[%emt 00:00:07]} Kg8 {[%clk 00:24:45]} {[%emt 00:00:10]} 34.
Rxd3 {[%clk 00:23:11]} {[%emt 00:00:04]} Qc6 {[%clk 00:23:48]} {[%emt
00:01:27]} 35. Rc1 {[%clk 00:21:40]} {[%emt 00:02:01]} Qe4 {[%clk 00:16:49]}
{[%emt 00:07:29]} 36. Qd2 {[%clk 00:22:01]} {[%emt 00:00:08]} Rxc4 {[%clk
00:16:07]} {[%emt 00:01:12]} 37. Re1 {[%clk 00:22:10]} {[%emt 00:00:22]} Qxf5
{[%clk 00:16:17]} {[%emt 00:00:19]} 38. h5 {[%clk 00:22:25]} {[%emt 00:00:15]}
Rc2 {[%clk 00:16:11]} {[%emt 00:00:36]} 0-1

[Event "NJSK 2026 Jeugd B"]
[Site "Helmond, Netherlands"]
[Date "2026.04.28"]
[Round "4.4"]
[White "Frederiks, Jesse"]
[Black "Teianu, Maxim"]
[Result "1/2-1/2"]
[TimeControl "90min/40moves + 30min + 30sec/move"]
[WhiteTitle "-"]
[BlackTitle "-"]
[WhiteFideId "1095790"]
[BlackFideId "40101967"]
[WhiteElo "2018"]
[BlackElo "2024"]

1. e4 {[%clk 01:30:56]} {[%emt 00:00:02]} e6 {[%clk 01:30:56]} {[%emt
00:00:07]} 2. d4 {[%clk 01:31:19]} {[%emt 00:00:05]} d5 {[%clk 01:31:21]}
{[%emt 00:00:05]} 3. Nc3 {[%clk 01:31:24]} {[%emt 00:00:26]} dxe4 {[%clk
01:31:45]} {[%emt 00:00:06]} 4. Nxe4 {[%clk 01:31:48]} {[%emt 00:00:05]} Bd7
{[%clk 01:32:08]} {[%emt 00:00:08]} 5. Nf3 {[%clk 01:31:50]} {[%emt 00:00:26]}
Bc6 {[%clk 01:32:25]} {[%emt 00:00:14]} 6. Bd3 {[%clk 01:32:12]} {[%emt
00:00:09]} Nd7 {[%clk 01:32:50]} {[%emt 00:00:06]} 7. O-O {[%clk 01:32:28]}
{[%emt 00:00:12]} Ngf6 {[%clk 01:33:02]} {[%emt 00:00:18]} 8. Re1 {[%clk
01:32:24]} {[%emt 00:00:32]} Bxe4 {[%clk 01:32:57]} {[%emt 00:00:39]} 9. Bxe4
{[%clk 01:32:42]} {[%emt 00:00:10]} Nxe4 {[%clk 01:33:23]} {[%emt 00:00:05]} 10.
Rxe4 {[%clk 01:33:05]} {[%emt 00:00:06]} Be7 {[%clk 01:33:50]} {[%emt
00:00:05]} 11. Rg4 {[%clk 01:31:11]} {[%emt 00:02:23]} Bf6 {[%clk 01:34:15]}
{[%emt 00:00:05]} 12. h4 {[%clk 01:30:44]} {[%emt 00:00:57]} c5 {[%clk
01:34:08]} {[%emt 00:00:37]} 13. Bg5 {[%clk 01:30:08]} {[%emt 00:01:05]} cxd4
{[%clk 01:33:04]} {[%emt 00:01:35]} 14. Bxf6 {[%clk 01:27:21]} {[%emt
00:03:16]} Qxf6 {[%clk 01:32:46]} {[%emt 00:00:48]} 15. Rxd4 {[%clk 01:27:22]}
{[%emt 00:00:30]} Nb8 {[%clk 01:32:14]} {[%emt 00:01:01]} 16. Ne5 {[%clk
01:26:21]} {[%emt 00:01:31]} O-O {[%clk 01:31:37]} {[%emt 00:01:08]} 17. Qe2
{[%clk 01:25:56]} {[%emt 00:00:55]} Nc6 {[%clk 01:25:52]} {[%emt 00:06:15]} 18.
Nxc6 {[%clk 01:26:22]} {[%emt 00:00:03]} bxc6 {[%clk 01:26:18]} {[%emt
00:00:05]} 19. c3 {[%clk 01:26:50]} {[%emt 00:00:02]} Rfd8 {[%clk 01:16:25]}
{[%emt 00:10:23]} 20. Rad1 {[%clk 01:18:29]} {[%emt 00:08:51]} Rxd4 {[%clk
01:13:00]} {[%emt 00:03:55]} 21. Rxd4 {[%clk 01:18:19]} {[%emt 00:00:40]} Rb8
{[%clk 00:56:56]} {[%emt 00:16:33]} 22. b4 {[%clk 01:13:07]} {[%emt 00:05:43]}
g6 {[%clk 00:46:48]} {[%emt 00:10:38]} 23. Qe4 {[%clk 01:08:23]} {[%emt
00:05:13]} Rc8 {[%clk 00:41:07]} {[%emt 00:06:12]} 24. Rc4 {[%clk 01:05:08]}
{[%emt 00:03:44]} Rd8 {[%clk 00:39:41]} {[%emt 00:01:58]} 25. g3 {[%clk
00:55:21]} {[%emt 00:10:17]} Rd2 {[%clk 00:34:32]} {[%emt 00:05:37]} 26. Qe3
{[%clk 00:54:44]} {[%emt 00:01:08]} Rd1+ {[%clk 00:33:49]} {[%emt 00:01:13]} 27.
Kg2 {[%clk 00:53:28]} {[%emt 00:01:46]} Qf5 {[%clk 00:28:12]} {[%emt 00:06:06]}
28. Rc5 {[%clk 00:37:54]} {[%emt 00:16:07]} Qb1 {[%clk 00:28:26]} {[%emt
00:00:15]} 29. Qf3 {[%clk 00:37:56]} {[%emt 00:00:28]} Rg1+ {[%clk 00:16:15]}
{[%emt 00:12:41]} 30. Kh2 {[%clk 00:38:17]} {[%emt 00:00:08]} Qe1 {[%clk
00:16:34]} {[%emt 00:00:11]} 31. Rc4 {[%clk 00:22:14]} {[%emt 00:16:34]} Rf1
{[%clk 00:12:55]} {[%emt 00:04:10]} 32. Rf4 {[%clk 00:21:38]} {[%emt 00:01:06]}
f5 {[%clk 00:12:50]} {[%emt 00:00:35]} 33. Qxc6 {[%clk 00:19:39]} {[%emt
00:02:29]} Rxf2+ {[%clk 00:13:15]} {[%emt 00:00:06]} 34. Rxf2 {[%clk 00:20:05]}
{[%emt 00:00:04]} Qxf2+ {[%clk 00:13:40]} {[%emt 00:00:05]} 35. Qg2 {[%clk
00:20:21]} {[%emt 00:00:13]} Qe3 {[%clk 00:13:50]} {[%emt 00:00:21]} 36. c4
{[%clk 00:19:06]} {[%emt 00:01:45]} f4 {[%clk 00:13:33]} {[%emt 00:00:46]} 37.
gxf4 {[%clk 00:17:17]} {[%emt 00:02:18]} Qxf4+ {[%clk 00:13:59]} {[%emt
00:00:05]} 38. Kh3 {[%clk 00:16:34]} {[%emt 00:01:11]} Qf5+ {[%clk 00:13:26]}
{[%emt 00:01:06]} 39. Kg3 {[%clk 00:10:39]} {[%emt 00:06:23]} Qe5+ {[%clk
00:12:34]} {[%emt 00:01:23]} 40. Kh3 {[%clk 00:08:27]} {[%emt 00:02:41]} Qc3+
{[%clk 00:12:31]} {[%emt 00:00:33]} 41. Kh2 {[%clk 00:07:36]} {[%emt 00:01:22]}
1/2-1/2

[Event "NJSK 2026 Jeugd B"]
[Site "Helmond, Netherlands"]
[Date "2026.04.28"]
[Round "4.5"]
[White "Winter, Sven"]
[Black "Zecha, Oscar"]
[Result "0-1"]
[TimeControl "90min/40moves + 30min + 30sec/move"]
[WhiteTitle "-"]
[BlackTitle "-"]
[WhiteFideId "1092375"]
[BlackFideId "1073826"]
[WhiteElo "2013"]
[BlackElo "2120"]

1. e4 {[%clk 01:30:57]} {[%emt 00:00:01]} e5 {[%clk 01:29:28]} {[%emt
00:01:33]} 2. Nf3 {[%clk 01:31:10]} {[%emt 00:00:17]} Nc6 {[%clk 01:29:51]}
{[%emt 00:00:07]} 3. Bc4 {[%clk 01:31:33]} {[%emt 00:00:06]} Bc5 {[%clk
01:30:18]} {[%emt 00:00:04]} 4. c3 {[%clk 01:31:55]} {[%emt 00:00:08]} Nf6
{[%clk 01:30:40]} {[%emt 00:00:07]} 5. d3 {[%clk 01:32:07]} {[%emt 00:00:18]}
h6 {[%clk 01:30:58]} {[%emt 00:00:12]} 6. O-O {[%clk 01:32:16]} {[%emt
00:00:22]} d6 {[%clk 01:30:44]} {[%emt 00:00:45]} 7. b4 {[%clk 01:32:04]}
{[%emt 00:00:41]} Bb6 {[%clk 01:31:07]} {[%emt 00:00:07]} 8. a4 {[%clk
01:32:14]} {[%emt 00:00:20]} a5 {[%clk 01:29:11]} {[%emt 00:02:27]} 9. b5
{[%clk 01:30:47]} {[%emt 00:01:57]} Ne7 {[%clk 01:22:56]} {[%emt 00:06:44]} 10.
Nbd2 {[%clk 01:30:44]} {[%emt 00:00:33]} Ng6 {[%clk 01:14:24]} {[%emt
00:09:03]} 11. Re1 {[%clk 01:29:11]} {[%emt 00:02:02]} Ng4 {[%clk 01:06:42]}
{[%emt 00:08:12]} 12. d4 {[%clk 01:28:44]} {[%emt 00:00:57]} Qf6 {[%clk
01:03:55]} {[%emt 00:03:18]} 13. Nf1 {[%clk 01:20:34]} {[%emt 00:08:39]} Nh4
{[%clk 00:57:00]} {[%emt 00:07:25]} 14. h3 {[%clk 01:07:05]} {[%emt 00:13:59]}
Nxf3+ {[%clk 00:43:46]} {[%emt 00:13:44]} 15. gxf3 {[%clk 01:05:27]} {[%emt
00:02:08]} Nxf2 {[%clk 00:43:19]} {[%emt 00:00:57]} 16. Kxf2 {[%clk 01:05:38]}
{[%emt 00:00:18]} exd4 {[%clk 00:43:08]} {[%emt 00:00:42]} 17. Ng3 {[%clk
00:54:01]} {[%emt 00:12:06]} Bxh3 {[%clk 00:42:06]} {[%emt 00:01:32]} 18. Ra3
{[%clk 00:50:10]} {[%emt 00:04:21]} h5 {[%clk 00:33:24]} {[%emt 00:09:13]} 19.
cxd4 {[%clk 00:48:59]} {[%emt 00:01:41]} Bxd4+ {[%clk 00:33:51]} {[%emt
00:00:03]} 20. Be3 {[%clk 00:48:35]} {[%emt 00:00:53]} Be5 {[%clk 00:27:38]}
{[%emt 00:06:43]} 21. Rh1 {[%clk 00:18:46]} {[%emt 00:30:21]} h4 {[%clk
00:25:19]} {[%emt 00:02:50]} 22. Rxh3 {[%clk 00:15:23]} {[%emt 00:03:52]} hxg3+
{[%clk 00:25:01]} {[%emt 00:00:48]} 23. Kg2 {[%clk 00:15:42]} {[%emt 00:00:11]}
Rxh3 {[%clk 00:23:47]} {[%emt 00:01:45]} 24. Kxh3 {[%clk 00:16:00]} {[%emt
00:00:12]} O-O-O {[%clk 00:23:03]} {[%emt 00:01:13]} 25. Kg2 {[%clk 00:13:12]}
{[%emt 00:03:17]} Rh8 {[%clk 00:21:01]} {[%emt 00:02:33]} 26. Bg1 {[%clk
00:06:15]} {[%emt 00:07:27]} Qh6 {[%clk 00:20:24]} {[%emt 00:01:08]} 27. Kf1
{[%clk 00:06:06]} {[%emt 00:00:38]} Qh3+ {[%clk 00:20:16]} {[%emt 00:00:37]} 28.
Ke2 {[%clk 00:06:08]} {[%emt 00:00:29]} Qg2+ {[%clk 00:20:35]} {[%emt
00:00:11]} 29. Ke3 {[%clk 00:02:40]} {[%emt 00:03:58]} Rh1 {[%clk 00:20:27]}
{[%emt 00:00:39]} 30. f4 {[%clk 00:01:58]} {[%emt 00:01:12]} Bb2 {[%clk
00:10:16]} {[%emt 00:10:41]} 31. Qf1 {[%clk 00:00:36]} {[%emt 00:01:51]} Qxf1
{[%clk 00:09:03]} {[%emt 00:01:44]} 0-1